bitfinex/quotes_ETHUSD_20241003
["timestamp","ask_amount","ask_price","bid_price","bid_amount"]
[1727945748236,4.27437,2339.6,2338.9,5.2621076]
[1727945748422,4.27462,2339.4,2339.0,4.27532]
[1727945749156,8.54935,2339.4,2338.9,4.27549]
[1727945749447,8.54935,2339.4,2338.9,5.2620736]
[1727945749749,4.27481,2339.3,2338.9,5.2620736]
[1727945749926,4.27481,2339.3,2338.9,9.5375036]
[1727945750253,4.27443,2339.5,2339.2,0.7992]
[1727945751051,4.27463,2339.4,2339.2,0.7992]
[1727945751269,4.27496,2339.3,2339.0,0.799]
[1727945751551,4.27504,2339.2,2339.0,0.799]
[1727945752046,4.27496,2339.3,2339.0,0.799]
[1727945752251,4.27463,2339.4,2339.0,0.799]
[1727945752831,4.27442,2339.5,2339.0,5.07429]
[1727945753033,4.27442,2339.5,2339.0,5.581719]
[1727945753234,4.27442,2339.5,2339.0,5.581649]
[1727945753435,4.27483,2339.3,2339.0,0.799]
[1727945754118,4.2746,2339.4,2339.0,5.07431]
[1727945754324,0.805869,2339.7,2339.0,5.07431]
[1727945754568,4.27443,2339.5,2339.1,4.27514]
[1727945754854,4.27425,2339.6,2339.1,4.27501]
[1727945755054,4.27425,2339.6,2339.2,4.27495]
[1727945755254,4.27442,2339.5,2339.1,4.27512]
[1727945755587,4.2747,2339.4,2339.0,5.0743]
[1727945756056,4.27448,2339.5,2339.0,5.0743]
[1727945756261,8.54902,2339.5,2339.0,6.009263]
[1727945756943,4.27448,2339.5,2339.1,4.27513]
[1727945757163,8.54903,2339.5,2339.1,4.27513]
[1727945757381,8.54903,2339.5,2339.0,1.733963]
[1727945757664,4.27448,2339.5,2339.1,4.27514]
[1727945757823,4.27462,2339.4,2339.0,5.07428]
[1727945758020,4.27511,2339.2,2339.0,0.799]
[1727945758223,4.27511,2339.2,2338.7,4.27583]
[1727945758224,4.27498,2339.2,2338.7,0.7973]
[1727945758455,4.27569,2338.8,2338.7,0.7973]
[1727945759836,4.27555,2338.9,2338.7,0.7973]
[1727945760051,8.55118,2338.9,2338.7,0.7973]
[1727945760256,4.27569,2338.8,2338.7,0.7973]
[1727945760522,4.27555,2338.9,2338.7,0.7973]
[1727945760892,4.27536,2339.0,2338.7,0.7973]
[1727945761083,4.27526,2339.1,2338.7,5.07317]
[1727945761627,7.27494,2339.3,2338.7,0.934922]
[1727945761628,4.27494,2339.3,2338.7,0.934922]
[1727945761852,4.27494,2339.3,2338.4,4.27641]
[1727945761853,4.27494,2339.3,2339.0,0.8306]
[1727945762125,8.54985,2339.3,2339.0,1.341199]
[1727945762329,8.54985,2339.3,2339.0,0.8306]
[1727945762493,4.27511,2339.2,2339.0,0.8306]
[1727945762692,4.2747,2339.4,2339.0,0.8306]
[1727945762915,4.27498,2339.2,2339.0,0.8306]
[1727945763329,4.27481,2339.3,2339.0,0.8306]
[1727945763553,4.27497,2339.2,2339.0,0.8306]
[1727945764328,4.27481,2339.3,2339.0,0.8306]
[1727945766332,4.27417,2339.7,2339.0,1.76877]
[1727945766538,4.27417,2339.7,2339.2,4.27489]
[1727945766539,4.27415,2339.7,2339.2,4.27489]
[1727945766833,4.2739,2339.8,2339.4,4.27446]
[1727945767065,5.0417,2339.9,2339.5,5.04382]
[1727945767066,4.27384,2339.9,2339.5,5.04382]
[1727945767209,5.09444,2340.4,2339.6,0.504382]
[1727945767414,5.09444,2340.4,2340.0,4.27342]
[1727945767415,0.8215,2340.4,2340.0,4.27342]
[1727945767721,0.8215,2340.4,2339.7,5.06384048]
[1727945767914,5.09436,2340.4,2339.9,4.27358]
[1727945768268,4.27297,2340.3,2339.9,5.63469605]
[1727945768417,4.27297,2340.3,2339.9,1.36111605]
[1727945768616,4.27314,2340.2,2339.8,4.27374]
[1727945768812,4.27297,2340.3,2339.8,4.27374]
[1727945769030,4.27297,2340.3,2339.9,4.27361]
[1727945769707,0.8215,2340.4,2339.9,4.27361]
[1727945769910,5.09428,2340.4,2340.0,0.854735]
[1727945770767,7.39,2340.6,2339.3,5.04806]
[1727945770768,4.27394,2339.8,2339.3,5.04806]
[1727945770966,4.27452,2339.5,2339.3,0.7733]
[1727945771148,0.7712,2339.9,2339.3,0.7733]
[1727945771149,4.27415,2339.7,2339.3,0.7733]
[1727945771309,4.27389,2339.8,2339.4,4.27448]
[1727945771511,4.2736,2340.0,2339.6,4.27411]
[1727945771756,4.2736,2340.0,2339.5,4.27429]
[1727945772051,4.2736,2340.0,2339.6,4.27422]
[1727945772258,4.2736,2340.0,2339.5,4.779053]
[1727945772259,8.54719,2340.0,2339.5,4.779053]
[1727945772418,4.27359,2340.0,2339.5,4.779053]
[1727945772970,4.27369,2339.9,2339.5,4.779053]
[1727945773443,4.27359,2340.0,2339.6,0.4779053]
[1727945773759,4.27429,2339.6,2339.3,0.7733]
[1727945774558,4.2746,2339.4,2339.3,0.7733]
[1727945775354,4.2746,2339.4,2339.0,0.821]
[1727945775557,4.2746,2339.4,2339.0,5.523849]
[1727945775765,4.27486,2339.3,2339.0,1.248549]
[1727945775946,4.27486,2339.3,2339.0,0.821]
[1727945776568,8.54935,2339.4,2339.0,0.821]
[1727945776844,4.27415,2339.7,2339.2,4.27493]
[1727945777085,4.27415,2339.7,2339.2,4.784523]
[1727945777456,4.27415,2339.7,2339.3,4.27477]
[1727945777457,8.54834,2339.7,2339.3,4.27477]
[1727945777768,4.27389,2339.8,2339.3,4.27477]
[1727945778089,4.27389,2339.8,2339.4,0.4784363]
[1727945778283,4.27376,2339.9,2339.4,4.7529163]
[1727945778890,7.27367,2340.0,2339.3,0.8034]
[1727945778891,4.27405,2339.7,2339.3,0.8034]
[1727945779080,4.27435,2339.6,2339.3,0.8034]
[1727945781289,4.27393,2339.8,2339.4,4.27449]
[1727945781605,4.27357,2340.0,2339.5,4.27434]
[1727945781918,4.27354,2340.0,2339.5,8.54857]
[1727945782095,4.27354,2340.0,2339.5,5.3029534]
[1727945782253,4.27354,2340.0,2339.5,5.3031034]
[1727945782458,4.27369,2339.9,2339.5,5.3031034]
[1727945782859,4.27369,2339.9,2339.5,4.27438]
[1727945783058,4.27369,2339.9,2339.5,8.5487]
[1727945783664,4.27334,2340.1,2339.5,4.27432]
[1727945783865,4.27334,2340.1,2339.6,4.27409]
[1727945784271,4.27291,2340.4,2340.0,4.27348]
[1727945784272,4.27285,2340.4,2340.0,4.27348]
[1727945784467,4.27251,2340.6,2339.7,0.7753]
[1727945784468,5.05781,2340.6,2339.7,5.476699]
[1727945784711,5.05781,2340.6,2340.1,4.27319]
[1727945785199,9.33036,2340.6,2340.1,4.27319]
[1727945785353,4.27177,2341.0,2340.0,4.27343]
[1727945785354,4.27187,2340.9,2340.5,4.27252]
[1727945785769,4.27164,2341.1,2340.7,4.27218]
[1727945785970,4.27146,2341.2,2340.7,0.508518]
[1727945786422,4.27146,2341.2,2340.8,4.27203]
[1727945786599,4.27145,2341.2,2340.8,4.27202]
[1727945786931,4.27145,2341.2,2340.8,5.1773008]
[1727945787088,4.27145,2341.2,2340.8,0.9052808]
[1727945787089,4.27141,2341.2,2340.8,0.9052808]
[1727945787770,8.5429,2341.2,2340.8,0.9052808]
[1727945787975,4.27141,2341.2,2340.8,0.9052808]
[1727945788466,8.54287,2341.2,2340.8,0.9052808]
[1727945788673,4.27153,2341.1,2340.8,0.9052808]
[1727945789108,4.27168,2341.0,2340.8,0.9052808]
[1727945789319,4.27151,2341.1,2340.8,0.9052808]
[1727945789573,4.27141,2341.2,2340.6,4.27234]
[1727945789720,4.27141,2341.2,2340.7,4.27209]
[1727945790071,0.7994,2340.7,2340.2,5.127772]
[1727945790250,0.7994,2340.7,2339.9,4.27351]
[1727945790251,4.27303,2340.3,2339.9,4.27351]
[1727945790437,4.27303,2340.3,2340.0,0.427351]
[1727945790770,4.27303,2340.3,2339.8,4.27384]
[1727945790954,4.27303,2340.3,2339.9,4.27366]
[1727945791467,4.27303,2340.3,2339.7,4.27387]
[1727945791669,0.7994,2340.5,2339.6,4.27406]
[1727945791670,4.27348,2340.1,2339.6,4.27406]
[1727945791966,4.27348,2340.1,2339.6,4.782766]
[1727945792277,4.27348,2340.1,2339.7,4.27402]
[1727945792416,4.27433,2339.6,2339.0,4.27525]
[1727945792618,4.27433,2339.6,2339.0,4.778405]
[1727945792921,5.03556,2340.0,2339.3,4.27472]
[1727945792922,3.0,2339.9,2339.3,4.27472]
[1727945793148,7.2738,2339.9,2339.5,0.7743]
[1727945793356,3.0,2339.9,2339.5,0.7743]
[1727945793672,4.27334,2340.1,2339.5,0.7743]
[1727945793883,4.27359,2340.0,2339.5,0.7743]
[1727945794024,8.54724,2340.0,2339.5,0.7743]
[1727945794349,0.508669,2340.2,2339.5,0.7743]
[1727945794350,4.27333,2340.1,2339.5,0.7743]
[1727945794525,4.27354,2340.0,2339.5,0.7743]
[1727945794862,4.27341,2340.1,2339.5,1.279189]
[1727945795067,4.27353,2340.0,2339.5,1.279189]
[1727945795423,4.2737,2339.9,2339.5,1.279189]
[1727945795736,0.7627,2340.0,2339.1,4.27501]
[1727945795940,4.27331,2340.2,2338.7,0.821]
[1727945795941,4.27569,2338.8,2338.7,0.821]
[1727945796317,4.27559,2338.9,2338.7,0.821]
[1727945796639,4.27569,2338.8,2338.7,0.821]
[1727945796868,4.27615,2338.6,2338.0,0.821]
[1727945797087,4.2762,2338.6,2338.2,0.821]
[1727945797247,4.27627,2338.5,2338.2,0.821]
[1727945797576,4.27575,2338.8,2338.2,0.821]
[1727945797787,4.27614,2338.6,2338.3,0.560771]
[1727945797997,4.27625,2338.5,2338.2,0.821]
[1727945799139,8.55196,2338.7,2338.2,0.821]
[1727945799345,8.55196,2338.7,2338.2,1.3308]
[1727945799796,4.27598,2338.7,2338.2,1.3308]
[1727945800078,4.27524,2339.1,2338.3,4.27647]
[1727945800079,4.27516,2339.1,2338.3,4.27647]
[1727945800285,4.27551,2338.9,2338.4,0.8068]
[1727945800444,4.27582,2338.8,2338.4,1.366126]
[1727945801275,4.27606,2338.6,2338.4,0.8068]
[1727945801676,4.27589,2338.7,2338.4,0.8068]
[1727945801848,4.27614,2338.6,2338.4,0.8068]
[1727945802247,4.27582,2338.8,2338.4,0.8068]
[1727945802471,0.8232,2339.1,2338.4,0.8068]
[1727945802642,4.27616,2338.6,2338.4,0.8068]
[1727945803055,4.2759,2338.7,2338.4,0.8068]
[1727945803344,4.27584,2338.8,2338.4,0.8068]
[1727945803564,4.2759,2338.7,2338.4,0.8068]
[1727945803774,4.27554,2338.9,2338.4,1.31515]
[1727945804084,4.27569,2338.8,2338.4,0.8073]
[1727945804286,4.27548,2339.0,2338.5,0.936038]
[1727945804450,4.27546,2339.0,2338.5,0.936038]
[1727945804648,4.27546,2339.0,2338.6,0.8073]
[1727945804649,4.27541,2339.0,2338.6,0.8073]
[1727945806299,8.55087,2339.0,2338.6,0.8073]
[1727945806458,4.27553,2338.9,2338.6,0.8073]
[1727945806654,4.27541,2339.0,2338.6,0.8073]
[1727945807288,8.55088,2339.0,2338.6,0.8073]
[1727945807479,4.27541,2339.0,2338.6,0.8073]
[1727945809289,8.55086,2339.0,2338.6,0.8073]
[1727945809792,4.27541,2339.0,2338.6,0.8073]
[1727945810159,4.27541,2339.0,2338.7,0.6019488]
[1727945810493,4.27541,2339.0,2338.6,0.8073]
[1727945811454,5.0706,2339.4,2338.9,4.27544]
[1727945811455,4.27461,2339.4,2338.9,4.27544]
[1727945811651,4.27514,2339.1,2339.0,0.804]
[1727945812713,4.27497,2339.2,2339.0,0.804]
[1727945814206,8.54912,2339.5,2339.0,0.804]
[1727945814379,4.27491,2339.3,2339.0,0.804]
[1727945814573,4.27498,2339.2,2339.0,0.804]
[1727945816903,4.27491,2339.3,2339.0,0.804]
[1727945816904,4.27485,2339.3,2339.0,0.804]
[1727945817908,8.54976,2339.3,2339.0,1.41722701]
[1727945818117,4.27499,2339.2,2339.0,1.41722701]
[1727945818681,4.27485,2339.3,2339.0,1.41722701]
[1727945818900,4.27505,2339.2,2339.0,1.41722701]
[1727945819085,4.27505,2339.2,2339.0,0.804]
[1727945820567,4.27481,2339.3,2339.0,0.804]
[1727945820770,8.54977,2339.3,2339.0,0.804]
[1727945820967,4.27481,2339.3,2339.0,0.804]
[1727945821199,4.27503,2339.2,2339.0,0.804]
[1727945821606,4.27514,2339.1,2339.0,0.804]
[1727945821802,7.2745,2339.5,2339.0,0.804]
[1727945821973,4.86986934,2340.3,2339.2,4.27487]
[1727945821974,5.06946,2339.8,2339.2,4.27487]
[1727945822174,5.06946,2339.8,2339.3,4.27467]
[1727945822710,5.06946,2339.8,2339.4,4.27459]
[1727945823007,4.27396,2339.8,2339.4,4.27459]
[1727945823208,4.27418,2339.7,2339.4,0.854926]
[1727945823407,4.27418,2339.7,2339.2,8.54976]
[1727945824080,4.27418,2339.7,2339.3,4.27465]
[1727945824268,4.27388,2339.8,2339.4,1.282441]
[1727945824474,5.06147,2340.0,2339.5,5.02499]
[1727945824475,4.27373,2339.9,2339.5,5.02499]
[1727945824690,4.27343,2340.1,2339.5,5.02499]
[1727945824903,5.0611,2340.2,2339.7,4.27401]
[1727945825249,5.0611,2340.2,2339.5,1.253099]
[1727945825250,4.27224,2340.7,2340.2,4.27301]
[1727945825546,0.7521,2341.0,2340.4,5.07628]
[1727945825547,4.27191,2340.9,2340.4,5.07628]
[1727945825899,4.27206,2340.8,2340.4,0.8036]
[1727945826502,4.27191,2340.9,2340.5,4.27256]
[1727945826503,4.27187,2340.9,2340.5,4.27256]
[1727945826736,4.27187,2340.9,2340.4,9.34901]
[1727945826941,4.27187,2340.9,2340.4,5.07628]
[1727945827102,4.27187,2340.9,2340.4,6.011206]
[1727945827505,4.2717,2341.0,2340.5,4.27254]
[1727945828340,4.27187,2340.9,2340.4,6.011206]
[1727945828548,4.27205,2340.8,2340.4,6.011206]
[1727945828747,4.27187,2340.9,2340.4,10.283826]
[1727945828954,4.27187,2340.9,2340.5,4.27258]
[1727945829131,4.2716,2341.1,2340.5,5.3009546]
[1727945829307,7.39,2341.4,2340.5,5.3009546]
[1727945829308,4.27126,2341.3,2340.6,4.27239]
[1727945829636,8.1443,2341.4,2340.9,5.08589]
[1727945829637,4.27105,2341.4,2340.9,5.08589]
[1727945829956,7.2709,2341.5,2341.0,4.32800821]
[1727945829957,8.54177,2341.5,2341.0,4.32800821]
[1727945830157,0.8242,2341.7,2340.9,5.594479]
[1727945830158,4.27051,2341.7,2341.3,4.27111]
[1727945830320,4.27051,2341.7,2341.3,0.7935]
[1727945830505,4.27094,2341.4,2341.0,0.5594479]
[1727945830701,4.27094,2341.4,2341.0,4.8311179]
[1727945830974,4.27094,2341.4,2341.1,1.21028779]
[1727945831650,5.09838,2341.6,2341.1,5.48175779]
[1727945831856,4.27086,2341.5,2341.1,1.21028779]
[1727945832167,4.27086,2341.5,2340.9,3.0]
[1727945832168,0.7733,2341.3,2340.9,4.27178]
[1727945833080,5.04454,2341.3,2340.8,4.27203]
[1727945833373,5.04454,2341.3,2340.9,0.854419]
[1727945833530,5.04454,2341.3,2340.8,4.27203]
[1727945833711,5.04454,2341.3,2340.9,4.27184]
[1727945833903,9.31579,2341.3,2340.8,4.27193]
[1727945834103,9.31578,2341.3,2340.8,4.27193]
[1727945834463,4.27131,2341.2,2340.8,4.27193]
[1727945834609,4.27131,2341.2,2340.8,5.126351]
[1727945834844,5.07238,2341.0,2340.6,4.27228]
[1727945835195,0.8007,2340.9,2340.6,4.27239]
[1727945835695,0.809,2340.8,2340.4,4.27263]
[1727945835982,0.809,2340.8,2340.4,4.27264]
[1727945836186,5.08106,2340.8,2340.4,4.27264]
[1727945836684,4.27224,2340.7,2340.1,4.82254367]
[1727945836892,0.7824,2340.5,2340.1,4.2732]
[1727945837095,5.055,2340.5,2340.0,4.27348]
[1727945837296,5.055,2340.5,2340.0,4.700837]
[1727945837498,5.055,2340.5,2340.1,4.27331]
[1727945837801,4.27238,2340.7,2340.3,4.27293]
[1727945837981,4.27233,2340.7,2340.3,4.27293]
[1727945838186,8.54466,2340.7,2340.3,4.27293]
[1727945838369,4.27149,2341.1,2340.3,4.27293]
[1727945838370,4.27163,2341.1,2340.6,4.27227]
[1727945838558,8.54326,2341.1,2340.6,4.27227]
[1727945838893,7.39,2341.2,2340.5,4.27253]
[1727945838894,4.2717,2341.0,2340.5,4.27256]
[1727945839097,4.2717,2341.0,2340.6,4.30459842]
[1727945839257,8.54347,2341.0,2340.6,4.30459842]
[1727945839451,4.27198,2340.9,2340.5,4.27256]
[1727945839886,4.27198,2340.9,2340.4,0.7698]
[1727945840097,4.27198,2340.9,2340.5,0.504264]
[1727945840259,5.02932,2340.8,2340.3,4.27278]
[1727945841156,5.02932,2340.8,2340.3,8.54565]
[1727945841358,5.02932,2340.8,2340.3,4.27278]
[1727945841706,4.27187,2340.9,2340.4,5.07418]
[1727945841998,4.27187,2340.9,2340.4,9.774108]
[1727945842163,4.27187,2340.9,2340.5,4.27256]
[1727945842399,4.27169,2341.0,2340.6,4.27239]
[1727945842627,8.5425,2341.3,2340.7,4.27208]
[1727945842939,0.7544,2341.5,2340.7,4.27208]
[1727945842940,4.27131,2341.2,2340.8,4.27201]
[1727945843126,4.27131,2341.2,2340.9,0.854409]
[1727945843651,4.27131,2341.2,2340.4,0.427278]
[1727945843652,0.7546,2341.2,2340.4,0.427278]
[1727945843799,4.27212,2340.8,2340.4,0.427278]
[1727945843998,0.7546,2340.9,2339.7,0.10474997]
[1727945844196,7.39,2341.5,2340.1,4.27322]
[1727945844197,0.7546,2340.6,2340.1,4.27322]
[1727945844440,4.27149,2341.1,2340.2,1.251522]
[1727945844650,4.2714,2341.2,2340.6,4.27231]
[1727945844803,4.27168,2341.0,2340.4,4.27264]
[1727945844997,4.2714,2341.2,2340.6,4.27239]
[1727945844998,4.27157,2341.1,2340.6,4.27239]
[1727945845637,4.27134,2341.2,2340.7,0.7797]
[1727945845841,4.27169,2341.0,2340.7,0.7797]
[1727945846137,0.8241,2340.9,2340.5,3.427264]
[1727945846343,0.8241,2340.9,2340.5,4.699844]
[1727945846700,0.8241,2340.9,2340.6,4.2724]
[1727945848200,0.8241,2340.9,2340.4,4.27263]
[1727945848201,4.27186,2340.9,2340.4,4.27263]
[1727945848902,4.27187,2340.9,2340.4,4.27263]
[1727945849741,5.05986,2341.1,2340.6,4.27239]
[1727945849742,4.2717,2341.0,2340.6,4.27239]
[1727945850002,5.05637,2341.4,2340.9,4.27174]
[1727945850204,4.27097,2341.4,2340.9,4.27174]
[1727945850566,4.27115,2341.3,2340.9,4.27174]
[1727945851810,4.27115,2341.3,2340.8,4.27196]
[1727945852559,4.27149,2341.2,2340.7,5.2464249]
[1727945852774,4.27149,2341.2,2340.7,4.27219]
[1727945853385,4.27152,2341.1,2340.7,4.27219]
[1727945853600,4.27149,2341.2,2340.7,8.54429]
[1727945853803,4.2714,2341.2,2340.7,4.2721]
[1727945853994,4.27115,2341.3,2340.9,4.27184]
[1727945854313,0.7854,2341.7,2341.2,4.27123]
[1727945854314,4.27044,2341.7,2341.2,4.27123]
[1727945854608,4.27076,2341.5,2341.1,4.27142]
[1727945854819,4.2707,2341.6,2341.1,4.27142]
[1727945855012,5.516065,2341.9,2341.0,4.27162]
[1727945855013,4.27042,2341.7,2341.3,4.27111]
[1727945855204,4.27033,2341.8,2341.3,4.27111]
[1727945855205,4.27024,2341.8,2341.3,4.27111]
[1727945855387,1.246025,2341.9,2341.5,4.27074]
[1727945855388,4.27012,2341.9,2341.5,4.27074]
[1727945855590,4.27029,2341.8,2341.3,4.698241]
[1727945856006,4.27029,2341.8,2341.4,4.27087]
[1727945856209,4.27003,2341.9,2341.4,4.27087]
[1727945856409,4.27003,2341.9,2341.4,8.54166]
[1727945856730,4.27069,2341.6,2341.1,4.2714]
[1727945856929,4.27046,2341.7,2341.3,4.27111]
[1727945857229,4.27046,2341.7,2341.1,0.95867631]
[1727945857230,4.26985,2342.0,2341.1,5.06478139]
[1727945857387,4.26985,2342.0,2341.1,4.10610508]
[1727945857584,4.2701,2341.9,2341.2,0.48879051]
[1727945857893,4.2701,2341.9,2341.5,4.27075]
[1727945858281,4.2701,2341.9,2341.2,0.48879051]
[1727945858282,4.27027,2341.8,2341.4,4.2709]
[1727945859525,4.27005,2341.9,2341.5,0.7919]
[1727945859706,4.26992,2342.0,2341.5,5.06266]
[1727945860027,4.27036,2341.8,2341.3,4.2711]
[1727945860196,1.648477,2342.0,2341.1,4.27142]
[1727945860197,0.7945,2341.5,2341.1,4.27142]
[1727945860400,0.7945,2341.5,2341.1,5.425727]
[1727945860815,0.7945,2341.5,2341.1,1.154307]
[1727945860816,4.27101,2341.4,2341.1,1.154307]
[1727945860987,0.7995,2341.9,2340.7,4.27218]
[1727945860988,4.27149,2341.1,2340.7,4.27218]
[1727945861197,3.0,2341.9,2340.7,4.27218]
[1727945861198,0.7995,2341.0,2340.8,4.27194]
[1727945861510,5.08526,2341.3,2340.9,0.854412]
[1727945861704,4.27132,2341.2,2340.7,4.27218]
[1727945862014,4.27132,2341.2,2340.7,4.774489]
[1727945862217,5.08526,2341.3,2340.7,4.774489]
[1727945862218,5.0853,2341.3,2340.8,4.27202]
[1727945862528,4.2712,2341.3,2340.8,4.27202]
[1727945862938,8.54246,2341.3,2340.8,4.27202]
[1727945863227,4.27134,2341.2,2340.7,4.774509]
[1727945863439,4.2712,2341.3,2340.8,4.272]
[1727945863795,4.2712,2341.3,2340.8,4.27202]
[1727945864196,0.8141,2341.2,2340.8,4.27202]
[1727945865320,0.8141,2341.2,2340.8,5.126442]
[1727945865837,4.2712,2341.3,2340.8,5.126442]
[1727945866194,0.8189,2340.9,2340.3,5.60740737]
[1727945866448,0.8189,2340.9,2340.2,3.0]
[1727945866732,4.27263,2340.5,2340.3,0.3]
[1727945866947,4.27263,2340.5,2340.0,4.27336]
[1727945867307,4.27263,2340.5,2339.9,5.07719]
[1727945867308,4.27226,2340.7,2340.1,4.2732]
[1727945867527,4.27241,2340.6,2340.1,4.2732]
[1727945867729,4.27266,2340.5,2340.0,0.64117774]
[1727945867946,4.27298,2340.3,2339.9,0.8036]
[1727945868437,4.27298,2340.3,2339.6,5.60866737]
[1727945868438,4.27322,2340.2,2339.6,9.37622]
[1727945868647,4.27332,2340.1,2339.7,0.73881172]
[1727945868844,5.06667,2340.4,2339.7,0.73881172]
[1727945869052,6.17384432,2340.8,2339.6,5.10197]
[1727945869053,4.27261,2340.5,2339.8,4.85786317]
[1727945869205,4.27261,2340.5,2339.9,0.48578632]
[1727945869206,4.2729,2340.4,2339.9,0.48578632]
[1727945869647,8.54534,2340.5,2339.9,0.48578632]
[1727945869859,4.27277,2340.4,2339.9,4.75937632]
[1727945870051,4.27277,2340.4,2339.9,0.48578632]
[1727945870212,4.27277,2340.4,2339.9,4.27359]
[1727945870833,4.27261,2340.5,2340.1,0.7872]
[1727945871228,4.27285,2340.4,2339.9,0.7872]
[1727945871546,4.27305,2340.3,2339.9,1.720695]
[1727945872345,4.27278,2340.4,2339.9,5.994365]
[1727945872551,4.27278,2340.4,2340.0,1.0268215]
[1727945872708,4.27241,2340.6,2339.9,0.7872]
[1727945872911,4.27311,2340.3,2339.9,0.7872]
[1727945873313,4.27285,2340.4,2339.9,0.7872]
[1727945873846,2.439027,2340.7,2339.9,5.06087]
[1727945873847,4.27297,2340.3,2339.9,5.06087]
[1727945874067,4.27297,2340.3,2339.9,5.566975]
[1727945874411,4.27297,2340.3,2339.9,1.293305]
[1727945875359,4.27297,2340.3,2339.9,5.566965]
[1727945875654,4.27297,2340.3,2339.9,1.293305]
[1727945876011,4.27266,2340.5,2339.9,1.293305]
[1727945876012,4.27275,2340.5,2340.0,4.8302065]
[1727945876226,4.27275,2340.5,2340.0,0.5567165]
[1727945876525,4.27275,2340.5,2339.9,0.7872]
[1727945876526,4.27285,2340.4,2339.9,5.06086]
[1727945876962,4.27302,2340.3,2339.9,0.7872]
[1727945877266,0.427302,2340.3,2339.9,5.06084]
[1727945877464,4.27284,2340.4,2339.9,5.06084]
[1727945877626,4.27304,2340.3,2339.9,0.7872]
[1727945878475,4.27337,2340.1,2339.7,0.8228]
[1727945879028,4.27316,2340.2,2339.7,5.09677]
[1727945879231,4.27316,2340.2,2339.8,4.27386]
[1727945879980,4.9164263,2340.7,2339.8,4.27386]
[1727945880157,4.27269,2340.5,2340.0,4.27342]
[1727945880472,4.27248,2340.6,2340.1,0.427342]
[1727945880670,4.27248,2340.6,2340.1,4.700572]
[1727945881240,4.27248,2340.6,2340.1,8.973802]
[1727945881445,4.27248,2340.6,2340.2,1.2936572]
[1727945881646,4.27266,2340.5,2340.2,0.8236]
[1727945882170,8.54458,2340.7,2340.2,5.09669]
[1727945882467,4.27224,2340.7,2340.2,5.606381]
[1727945882671,0.7827,2341.0,2340.6,4.27239]
[1727945882672,4.27168,2341.0,2340.6,4.27239]
[1727945882893,0.7934,2341.7,2340.7,5.10428]
[1727945883029,4.27128,2341.3,2340.8,4.27196]
[1727945883225,4.27128,2341.3,2340.7,0.8321]
[1727945883226,4.27092,2341.5,2340.9,4.27185]
[1727945883479,4.27115,2341.3,2340.9,4.27185]
[1727945883685,4.27131,2341.2,2340.7,5.10422]
[1727945883839,4.27156,2341.1,2340.6,4.27233]
[1727945884462,4.27169,2341.0,2340.6,4.27233]
[1727945884901,4.27152,2341.1,2340.6,4.27233]
[1727945885177,4.27152,2341.1,2340.7,0.93525]
[1727945885582,4.27106,2341.4,2340.9,4.27179]
[1727945885740,4.27115,2341.3,2341.0,0.427179]
[1727945886076,4.27115,2341.3,2340.9,0.7828]
[1727945886077,4.27134,2341.2,2340.9,0.7828]
[1727945886382,4.27102,2341.4,2340.9,0.7828]
[1727945886675,4.27115,2341.3,2340.9,5.653587]
[1727945886973,4.27144,2341.2,2340.9,1.381817]
[1727945887131,4.27165,2341.1,2340.5,4.27255]
[1727945887330,5.07263,2340.9,2340.6,1.237278]
[1727945888484,5.07263,2340.9,2340.5,4.27248]
[1727945888485,0.8006,2340.9,2340.5,4.27248]
[1727945888774,5.07255,2340.9,2340.4,4.27263]
[1727945889267,0.8006,2340.9,2340.5,4.27251]
[1727945889475,0.8006,2340.9,2340.6,0.854514]
[1727945889673,5.07249,2340.9,2340.6,0.854514]
[1727945889832,0.8006,2340.9,2340.6,0.854514]
[1727945890029,5.07247,2340.9,2340.6,0.854514]
[1727945890231,5.07247,2340.9,2340.4,4.27263]
[1727945890455,4.27213,2340.8,2340.3,4.27291]
[1727945890658,4.27234,2340.7,2340.2,9.055731]
[1727945890864,4.27234,2340.7,2340.3,0.7782691]
[1727945891450,4.27213,2340.8,2340.3,0.7782691]
[1727945891765,4.27213,2340.8,2340.2,0.509691]
[1727945892078,4.27213,2340.8,2340.4,4.27276]
[1727945892629,5.0725,2340.9,2340.4,4.27276]
[1727945892830,0.8001,2341.3,2340.5,4.27241]
[1727945893035,4.27177,2341.0,2340.5,5.206327]
[1727945893235,4.27177,2341.0,2340.6,4.2724]
[1727945893492,4.26988,2342.0,2340.9,4.27177]
[1727945893493,11.6603,2341.8,2340.9,4.27177]
[1727945893787,4.27114,2341.3,2341.0,0.8001]
[1727945894085,4.27142,2341.2,2341.0,0.8001]
[1727945894287,4.27142,2341.2,2341.0,1.307299]
[1727945894492,4.27098,2341.4,2341.0,1.307299]
[1727945894687,4.27098,2341.4,2341.0,0.8001]
[1727945894954,4.27123,2341.3,2341.0,0.8001]
[1727945895107,4.27136,2341.2,2341.0,0.8001]
[1727945895310,4.27123,2341.3,2341.0,1.307307]
[1727945895714,8.5425,2341.3,2341.0,1.307307]
[1727945896194,4.27099,2341.4,2341.0,5.578967]
[1727945896397,4.27099,2341.4,2341.0,5.07176]
[1727945896696,4.27115,2341.3,2341.0,0.8001]
[1727945896901,4.27099,2341.4,2341.0,0.8001]
[1727945897068,8.54204,2341.4,2341.0,0.8001]